fUST/lending_fUST_20250222
["ID","MTS","AMOUNT","RATE_DAILY","PERIOD"]
[354088493,1740229841238,-500.0,0.00013698,2]
[354088496,1740229841248,-500.0,0.00013698,2]
[354088498,1740229841258,-500.0,0.00013698,2]
[354088499,1740229841267,-500.0,0.00013698,2]
[354088500,1740229841276,-14353.05,0.00013698,2]
[354088501,1740229841285,-500.0,0.00013698,2]
[354088502,1740229841294,-500.0,0.00013698,2]
[354088503,1740229841303,-5652.25,0.00013698,2]
[354088504,1740229841312,-500.0,0.00013698,2]
[354088505,1740229841321,-187.28406276,0.00013763,2]
[354088506,1740229841330,-500.0,0.0001378,2]
[354088507,1740229841339,-500.0,0.0001378,2]
[354088508,1740229841349,-535.74,0.0001378,2]
[354088509,1740229841357,-500.0,0.0001378,2]
[354088510,1740229841367,-500.0,0.0001378,2]
[354088511,1740229841375,-500.0,0.0001378,2]
[354088512,1740229841384,-500.0,0.0001378,2]
[354088513,1740229841393,-500.0,0.0001378,2]
[354088514,1740229841403,-500.0,0.0001378,2]
[354088515,1740229841412,-500.0,0.0001378,2]
[354088516,1740229841421,-500.0,0.0001378,2]
[354088517,1740229841430,-500.0,0.0001378,2]
[354088518,1740229841439,-500.0,0.0001378,2]
[354088519,1740229841448,-500.0,0.0001378,2]
[354088520,1740229841457,-500.0,0.0001378,2]
[354088521,1740229841466,-500.0,0.0001378,2]
[354088522,1740229841475,-500.0,0.0001378,2]
[354088523,1740229841484,-500.0,0.0001378,2]
[354088524,1740229841493,-500.0,0.0001378,2]
[354088525,1740229841502,-500.0,0.0001378,2]
[354088526,1740229841511,-500.0,0.0001378,2]
[354088527,1740229841520,-500.0,0.0001378,2]
[354088528,1740229841529,-500.0,0.0001378,2]
[354088529,1740229841538,-500.0,0.0001378,2]
[354088530,1740229841547,-500.0,0.0001378,2]
[354088531,1740229841556,-500.0,0.0001378,2]
[354088532,1740229841565,-500.0,0.0001378,2]
[354088533,1740229841575,-1002.13,0.0001378,2]
[354088534,1740229841584,-2920.62,0.0001378,2]
[354088535,1740229841593,-500.0,0.0001378,2]
[354088536,1740229841602,-500.0,0.0001378,2]
[354088537,1740229841611,-500.0,0.0001378,2]
[354088538,1740229841620,-500.0,0.0001378,2]
[354088539,1740229841629,-1074.07,0.0001378,2]
[354088540,1740229841640,-500.0,0.0001378,2]
[354088541,1740229841650,-500.0,0.0001378,2]
[354088542,1740229841659,-5226.25,0.0001378,2]
[354088543,1740229841668,-500.0,0.0001378,2]
[354088544,1740229841678,-500.0,0.0001378,2]
[354088545,1740229841687,-500.0,0.0001378,2]
[354088546,1740229841697,-500.0,0.0001378,2]
[354088547,1740229841706,-500.0,0.0001378,2]
[354088548,1740229841718,-1006.26,0.0001378,2]
[354088549,1740229841728,-500.0,0.0001378,2]
[354088550,1740229841738,-500.0,0.0001378,2]
[354088551,1740229841747,-2030.04,0.0001378,2]
[354088552,1740229841756,-500.0,0.0001378,2]
[354088553,1740229841765,-500.0,0.0001378,2]
[354088554,1740229841774,-1093.42,0.0001378,2]
[354088555,1740229841783,-500.0,0.0001378,2]
[354088556,1740229841792,-500.0,0.0001378,2]
[354088557,1740229841802,-500.0,0.0001378,2]
[354088558,1740229841811,-500.0,0.0001378,2]
[354088559,1740229841820,-500.0,0.0001378,2]
[354088560,1740229841832,-500.0,0.0001378,2]
[354088561,1740229841842,-1356.42,0.0001378,2]
[354088562,1740229841852,-500.0,0.0001378,2]
[354088563,1740229841861,-422.97034166,0.0001378,2]
[354088564,1740229841871,-500.0,0.0001378,2]
[354088565,1740229841882,-500.0,0.0001378,2]
[354088566,1740229841892,-500.0,0.0001378,2]
[354088567,1740229841901,-500.0,0.0001378,2]
[354088568,1740229841910,-500.0,0.0001378,2]
[354088569,1740229841921,-500.0,0.0001378,2]
[354088570,1740229841930,-500.0,0.0001378,2]
[354088571,1740229841939,-500.0,0.0001378,2]
[354088572,1740229841948,-1132.76,0.0001378,2]
[354088573,1740229841958,-500.0,0.0001378,2]
[354088574,1740229841967,-500.0,0.0001378,2]
[354088575,1740229841976,-500.0,0.0001378,2]
[354088576,1740229841985,-996.15,0.0001378,2]
[354088577,1740229841994,-500.0,0.0001378,2]
[354088578,1740229842003,-500.0,0.0001378,2]
[354088579,1740229842012,-500.0,0.0001378,2]
[354088580,1740229842021,-500.0,0.0001378,2]
[354088581,1740229842030,-14353.05,0.0001378,2]
[354088582,1740229842040,-500.0,0.0001378,2]
[354088583,1740229842049,-500.0,0.0001378,2]
[354088584,1740229842058,-5652.25,0.0001378,2]
[354088585,1740229842067,-500.0,0.0001378,2]
[354088586,1740229842077,-222.47025026,0.00013862,2]
[354088587,1740229842086,-500.0,0.00013863,2]
[354088588,1740229842096,-500.0,0.00013863,2]
[354088589,1740229842105,-500.0,0.00013863,2]
[354088590,1740229842113,-500.0,0.00013863,2]
[354088591,1740229842123,-500.0,0.00013863,2]
[354088592,1740229842132,-500.0,0.00013863,2]
[354088593,1740229842140,-500.0,0.00013863,2]
[354088594,1740229842150,-500.0,0.00013863,2]
[354088595,1740229842159,-500.0,0.00013863,2]
[354088596,1740229842167,-500.0,0.00013863,2]
[354088597,1740229842176,-500.0,0.00013863,2]
[354088598,1740229842185,-500.0,0.00013863,2]
[354088599,1740229842195,-500.0,0.00013863,2]
[354088600,1740229842204,-500.0,0.00013863,2]
[354088601,1740229842213,-500.0,0.00013863,2]
[354088602,1740229842222,-500.0,0.00013863,2]
[354088603,1740229842230,-500.0,0.00013863,2]
[354088604,1740229842239,-500.0,0.00013863,2]
[354088605,1740229842249,-500.0,0.00013863,2]
[354088606,1740229842258,-500.0,0.00013863,2]
[354088607,1740229842267,-500.0,0.00013863,2]
[354088608,1740229842276,-505.15640973,0.00013863,2]
[354088609,1740229842285,-500.0,0.00013863,2]
[354088610,1740229842294,-500.0,0.00013863,2]
[354088611,1740229842304,-500.0,0.00013863,2]
[354088612,1740229842312,-1002.13,0.00013863,2]
[354088613,1740229842321,-2920.62,0.00013863,2]
[354088614,1740229842330,-500.0,0.00013863,2]
[354088615,1740229842339,-500.0,0.00013863,2]
[354088616,1740229842348,-500.0,0.00013863,2]
[354088617,1740229842358,-500.0,0.00013863,2]
[354088618,1740229842367,-1074.07,0.00013863,2]
[354088619,1740229842376,-500.0,0.00013863,2]
[354088620,1740229842384,-500.0,0.00013863,2]
[354088621,1740229842393,-5226.25,0.00013863,2]
[354088622,1740229842402,-500.0,0.00013863,2]
[354088623,1740229842412,-500.0,0.00013863,2]
[354088624,1740229842421,-500.0,0.00013863,2]
[354088625,1740229842430,-500.0,0.00013863,2]
[354088626,1740229842439,-500.0,0.00013863,2]
[354088627,1740229842447,-1006.26,0.00013863,2]
[354088628,1740229842456,-500.0,0.00013863,2]
[354088629,1740229842465,-500.0,0.00013863,2]
[354088630,1740229842474,-2030.04,0.00013863,2]
[354088631,1740229842483,-500.0,0.00013863,2]
[354088632,1740229842492,-500.0,0.00013863,2]
[354088633,1740229842501,-1093.42,0.00013863,2]
[354088634,1740229842510,-500.0,0.00013863,2]
[354088635,1740229842520,-230.97,0.00013863,2]
[354088636,1740229842528,-500.0,0.00013863,2]
[354088637,1740229842538,-500.0,0.00013863,2]
[354088638,1740229842547,-500.32,0.00013863,2]
[354088639,1740229842556,-500.0,0.00013863,2]
[354088640,1740229842565,-1356.42,0.00013863,2]
[354088641,1740229842574,-500.0,0.00013863,2]
[354088642,1740229842583,-500.0,0.00013863,2]
[354088643,1740229842592,-500.0,0.00013863,2]
[354088644,1740229842602,-500.0,0.00013863,2]
[354088645,1740229842611,-500.0,0.00013863,2]
[354088646,1740229842620,-500.0,0.00013863,2]
[354088647,1740229842629,-500.0,0.00013863,2]
[354088648,1740229842641,-500.0,0.00013863,2]
[354088649,1740229842651,-500.0,0.00013863,2]
[354088650,1740229842660,-1132.76,0.00013863,2]
[354088651,1740229842669,-500.0,0.00013863,2]
[354088652,1740229842678,-500.0,0.00013863,2]
[354088653,1740229842687,-500.0,0.00013863,2]
[354088654,1740229842696,-996.15,0.00013863,2]
[354088655,1740229842706,-500.0,0.00013863,2]
[354088656,1740229842716,-500.0,0.00013863,2]
[354088657,1740229842726,-627.88,0.00013863,2]
[354088658,1740229842735,-500.0,0.00013863,2]
[354088659,1740229842744,-14353.05,0.00013863,2]
[354088660,1740229842753,-500.0,0.00013863,2]
[354088661,1740229842763,-500.0,0.00013863,2]
[354088662,1740229842772,-5652.25,0.00013863,2]
[354088663,1740229842782,-500.0,0.00013863,2]
[354088664,1740229842791,-473.58,0.00013945,2]
[354088666,1740229842802,-500.0,0.00013945,2]
[354088668,1740229842811,-500.0,0.00013945,2]
[354088670,1740229842820,-179.55,0.00013945,2]
[354088672,1740229842830,-500.0,0.00013945,2]
[354088674,1740229842839,-500.0,0.00013945,2]
[354088676,1740229842848,-500.0,0.00013945,2]
[354088678,1740229842858,-500.0,0.00013945,2]
[354088680,1740229842868,-500.0,0.00013945,2]
[354088681,1740229842877,-500.0,0.00013945,2]
[354088683,1740229842887,-620.56,0.00013945,2]
[354088684,1740229842896,-592.8,0.00013945,2]
[354088686,1740229842906,-500.0,0.00013945,2]
[354088687,1740229842915,-500.0,0.00013945,2]
[354088688,1740229842925,-500.0,0.00013945,2]
[354088689,1740229842934,-1002.13,0.00013945,2]
[354088690,1740229842943,-2920.62,0.00013945,2]
[354088691,1740229842953,-500.0,0.00013945,2]
[354088692,1740229842962,-500.0,0.00013945,2]
[354088693,1740229842971,-500.0,0.00013945,2]
[354088694,1740229842980,-500.0,0.00013945,2]
[354088695,1740229842989,-1074.07,0.00013945,2]
[354088696,1740229842999,-5226.25,0.00013945,2]
[354088697,1740229843009,-500.0,0.00013945,2]
[354088698,1740229843018,-500.0,0.00013945,2]
[354088699,1740229843028,-500.0,0.00013945,2]
[354088700,1740229843039,-500.0,0.00013945,2]
[354088701,1740229843048,-500.0,0.00013945,2]
[354088702,1740229843057,-1006.26,0.00013945,2]
[354088703,1740229843066,-500.0,0.00013945,2]
[354088704,1740229843076,-2030.04,0.00013945,2]
[354088705,1740229843085,-639.99,0.00013945,2]
[354088706,1740229843094,-500.0,0.00013945,2]
[354088707,1740229843103,-1093.42,0.00013945,2]
[354088708,1740229843113,-500.0,0.00013945,2]
[354088709,1740229843125,-500.0,0.00013945,2]
[354088710,1740229843135,-500.0,0.00013945,2]
[354088711,1740229843144,-500.0,0.00013945,2]
[354088712,1740229843154,-1356.42,0.00013945,2]
[354088713,1740229843164,-500.0,0.00013945,2]
[354088714,1740229843257,-500.0,0.00013945,2]
[354088715,1740229843267,-500.0,0.00013945,2]
[354088716,1740229843277,-500.0,0.00013945,2]
[354088717,1740229843287,-500.0,0.00013945,2]
[354088718,1740229843298,-1132.76,0.00013945,2]
[354088719,1740229843308,-500.0,0.00013945,2]
[354088720,1740229843317,-500.0,0.00013945,2]
[354088721,1740229843326,-500.0,0.00013945,2]
[354088722,1740229843335,-996.15,0.00013945,2]
[354088723,1740229843344,-340.39583103,0.00013945,2]
[354088724,1740229843353,-500.0,0.00013945,2]
[354088725,1740229843363,-14353.05,0.00013945,2]
[354088726,1740229843372,-500.0,0.00013945,2]
[354088727,1740229843381,-5652.25,0.00013945,2]
[354088728,1740229843390,-269.68,0.00013945,2]
[354088729,1740229843400,-500.0,0.00014027,2]
[354088730,1740229843410,-500.0,0.00014027,2]
[354088731,1740229843419,-500.0,0.00014027,2]
[354088732,1740229843429,-500.0,0.00014027,2]
[354088733,1740229843438,-500.0,0.00014027,2]
[354088734,1740229843448,-500.0,0.00014027,2]
[354088735,1740229843457,-563.28,0.00014027,2]
[354088736,1740229843467,-500.0,0.00014027,2]
[354088737,1740229843477,-1002.13,0.00014027,2]
[354088738,1740229843487,-2920.62,0.00014027,2]
[354088739,1740229843496,-500.0,0.00014027,2]
[354088740,1740229843507,-500.0,0.00014027,2]
[354088741,1740229843516,-500.0,0.00014027,2]
[354088742,1740229843526,-500.0,0.00014027,2]
[354088743,1740229843535,-1074.07,0.00014027,2]
[354088744,1740229843544,-5226.25,0.00014027,2]
[354088745,1740229843553,-167.37,0.00014027,2]
[354088746,1740229843563,-500.0,0.00014027,2]
[354088747,1740229843571,-500.0,0.00014027,2]
[354088748,1740229843581,-500.0,0.00014027,2]
[354088749,1740229843590,-500.0,0.00014027,2]
[354088750,1740229843599,-1006.26,0.00014027,2]
[354088751,1740229843609,-500.0,0.00014027,2]
[354088752,1740229843618,-2030.04,0.00014027,2]
[354088753,1740229843627,-500.0,0.00014027,2]
[354088754,1740229843639,-1093.42,0.00014027,2]
[354088755,1740229843649,-500.0,0.00014027,2]
[354088756,1740229843658,-500.0,0.00014027,2]
[354088757,1740229843667,-500.0,0.00014027,2]
[354088758,1740229843676,-500.0,0.00014027,2]
[354088759,1740229843686,-1356.42,0.00014027,2]
[354088760,1740229843695,-500.0,0.00014027,2]
[354088761,1740229843705,-590.04,0.00014027,2]
[354088762,1740229843715,-418.48,0.00014027,2]
[354088763,1740229843724,-500.0,0.00014027,2]
[354088764,1740229843733,-500.0,0.00014027,2]
[354088765,1740229843743,-1132.76,0.00014027,2]
[354088766,1740229843752,-500.0,0.00014027,2]
[354088767,1740229843761,-996.15,0.00014027,2]
[354088768,1740229843770,-500.0,0.00014027,2]
[354088769,1740229843779,-14353.05,0.00014027,2]
[354088770,1740229843788,-500.0,0.00014027,2]
[354088771,1740229843797,-5652.25,0.00014027,2]
[354088772,1740229843806,-500.0,0.00014109,2]
[354088773,1740229843815,-500.0,0.00014109,2]
[354088774,1740229843824,-500.0,0.00014109,2]
[354088775,1740229843833,-500.0,0.00014109,2]
[354088776,1740229843842,-500.0,0.00014109,2]
[354088777,1740229843852,-500.0,0.00014109,2]
[354088778,1740229843861,-1002.13,0.00014109,2]
[354088779,1740229843870,-2920.62,0.00014109,2]
[354088780,1740229843878,-554.96,0.00014109,2]
[354088781,1740229843888,-500.0,0.00014109,2]
[354088782,1740229843897,-500.0,0.00014109,2]
[354088783,1740229843906,-1074.07,0.00014109,2]
[354088784,1740229843916,-5226.25,0.00014109,2]
[354088785,1740229843925,-500.0,0.00014109,2]
[354088786,1740229843934,-571.2,0.00014109,2]
[354088787,1740229843943,-619.11,0.00014109,2]
[354088788,1740229843952,-1006.26,0.00014109,2]
[354088789,1740229843962,-500.0,0.00014109,2]
[354088790,1740229843971,-2030.04,0.00014109,2]
[354088791,1740229843980,-500.0,0.00014109,2]
[354088792,1740229843989,-1093.42,0.00014109,2]
[354088793,1740229843998,-500.0,0.00014109,2]
[354088794,1740229844007,-500.0,0.00014109,2]
[354088795,1740229844016,-500.0,0.00014109,2]
[354088796,1740229844026,-500.0,0.00014109,2]
[354088797,1740229844035,-1356.42,0.00014109,2]
[354088798,1740229844044,-500.0,0.00014109,2]
[354088799,1740229844053,-500.0,0.00014109,2]
[354088800,1740229844062,-1132.76,0.00014109,2]
[354088801,1740229844071,-500.0,0.00014109,2]
[354088802,1740229844080,-996.15,0.00014109,2]
[354088803,1740229844089,-500.0,0.00014109,2]
[354088804,1740229844098,-14353.05,0.00014109,2]
[354088805,1740229844107,-500.0,0.00014109,2]
[354088806,1740229844116,-5652.25,0.00014109,2]
[354088807,1740229844126,-1562.95740509,0.00014158,2]
[354088808,1740229844135,-500.0,0.00014173,2]
[354088809,1740229844146,-268.23219675,0.00014173,2]
[354088810,1740229844156,-500.0,0.00014173,2]
[354088811,1740229844165,-288.78610561,0.00014173,2]
[354088812,1740229844174,-500.0,0.00014191,2]
[354088813,1740229844183,-500.0,0.00014191,2]
[354088814,1740229844192,-500.0,0.00014191,2]
[354088815,1740229844201,-169.84,0.00014191,2]
[354088816,1740229844211,-500.0,0.00014191,2]
[354088817,1740229844220,-500.0,0.00014191,2]
[354088818,1740229844229,-1002.13,0.00014191,2]
[354088819,1740229844238,-2920.62,0.00014191,2]
[354088820,1740229844248,-500.0,0.00014191,2]
[354088821,1740229844258,-500.0,0.00014191,2]
[354088822,1740229844267,-1074.07,0.00014191,2]
[354088823,1740229844276,-5226.25,0.00014191,2]
[354088824,1740229844286,-500.0,0.00014191,2]
[354088825,1740229844296,-1006.26,0.00014191,2]
[354088826,1740229844306,-500.0,0.00014191,2]
[354088827,1740229844315,-2030.04,0.00014191,2]
[354088828,1740229844324,-500.0,0.00014191,2]
[354088829,1740229844334,-1093.42,0.00014191,2]
[354088830,1740229844343,-500.0,0.00014191,2]
[354088831,1740229844353,-443.76,0.00014191,2]
[354088832,1740229844362,-500.0,0.00014191,2]
[354088833,1740229844372,-500.0,0.00014191,2]
[354088834,1740229844381,-1356.42,0.00014191,2]
[354088835,1740229844390,-500.0,0.00014191,2]
[354088836,1740229844400,-400.61951467,0.00014191,2]
[354088837,1740229844409,-1132.76,0.00014191,2]
[354088838,1740229844419,-500.0,0.00014191,2]
[354088839,1740229844428,-996.15,0.00014191,2]
[354088840,1740229844438,-500.0,0.00014191,2]
[354088841,1740229844447,-14353.05,0.00014191,2]
[354088842,1740229844457,-500.0,0.00014191,2]
[354088843,1740229844466,-5652.25,0.00014191,2]
[354088844,1740229844475,-1008.1775408,0.00014247,2]
[354088845,1740229844485,-500.0,0.00014273,2]
[354088846,1740229844494,-500.0,0.00014273,2]
[354088847,1740229844504,-500.0,0.00014273,2]
[354088848,1740229844513,-500.0,0.00014273,2]
[354088849,1740229844523,-523.72,0.00014273,2]
[354088850,1740229844532,-1002.13,0.00014273,2]
[354088851,1740229844541,-2920.62,0.00014273,2]
[354088852,1740229844551,-500.0,0.00014273,2]
[354088853,1740229844561,-500.0,0.00014273,2]
[354088854,1740229844570,-1074.07,0.00014273,2]
[354088855,1740229844580,-5226.25,0.00014273,2]
[354088856,1740229844589,-500.0,0.00014273,2]
[354088857,1740229844599,-1006.26,0.00014273,2]
[354088858,1740229844608,-499.28,0.00014273,2]
[354088859,1740229844618,-2030.04,0.00014273,2]
[354088860,1740229844627,-500.0,0.00014273,2]
[354088861,1740229844640,-1093.42,0.00014273,2]
[354088862,1740229844650,-500.0,0.00014273,2]
[354088863,1740229844659,-500.0,0.00014273,2]
[354088864,1740229844669,-500.0,0.00014273,2]
[354088865,1740229844680,-1356.42,0.00014273,2]
[354088866,1740229844690,-500.0,0.00014273,2]
[354088867,1740229844699,-1132.76,0.00014273,2]
[354088868,1740229844708,-500.0,0.00014273,2]
[354088869,1740229844719,-996.15,0.00014273,2]
[354088870,1740229844729,-500.0,0.00014273,2]
[354088871,1740229844739,-14353.05,0.00014273,2]
[354088872,1740229844748,-500.0,0.00014273,2]
[354088873,1740229844757,-5652.25,0.00014273,2]
[354088874,1740229844767,-500.0,0.00014356,2]
[354088875,1740229844777,-500.0,0.00014356,2]
[354088876,1740229844786,-500.0,0.00014356,2]
[354088877,1740229844796,-500.0,0.00014356,2]
[354088878,1740229844806,-1002.13,0.00014356,2]
[354088879,1740229844815,-2920.62,0.00014356,2]
[354088880,1740229844825,-500.0,0.00014356,2]
[354088881,1740229844835,-500.0,0.00014356,2]
[354088882,1740229844844,-1074.07,0.00014356,2]
[354088883,1740229844854,-5226.25,0.00014356,2]
[354088884,1740229844863,-500.0,0.00014356,2]
[354088885,1740229844874,-1006.26,0.00014356,2]
[354088886,1740229844883,-2030.04,0.00014356,2]
[354088887,1740229844892,-500.0,0.00014356,2]
[354088888,1740229844902,-1093.42,0.00014356,2]
[354088889,1740229844911,-500.0,0.00014356,2]
[354088890,1740229844920,-500.0,0.00014356,2]
[354088891,1740229844929,-500.0,0.00014356,2]
[354088892,1740229844938,-1356.42,0.00014356,2]
[354088893,1740229844948,-500.0,0.00014356,2]
[354088894,1740229844957,-1132.76,0.00014356,2]
[354088895,1740229844966,-500.0,0.00014356,2]
[354088896,1740229844975,-996.15,0.00014356,2]
[354088897,1740229844985,-500.0,0.00014356,2]
[354088898,1740229844994,-14353.05,0.00014356,2]
[354088899,1740229845004,-500.0,0.00014356,2]
[354088900,1740229845013,-5652.25,0.00014356,2]
[354088901,1740229845023,-500.0,0.00014438,2]
[354088902,1740229845032,-500.0,0.00014438,2]
[354088903,1740229845041,-500.0,0.00014438,2]
[354088904,1740229845051,-500.0,0.00014438,2]
[354088905,1740229845061,-1002.13,0.00014438,2]
[354088906,1740229845071,-2920.62,0.00014438,2]
[354088907,1740229845080,-500.0,0.00014438,2]
[354088908,1740229845091,-500.0,0.00014438,2]
[354088909,1740229845101,-1074.07,0.00014438,2]
[354088910,1740229845111,-5226.25,0.00014438,2]
[354088911,1740229845121,-500.0,0.00014438,2]
[354088912,1740229845130,-1006.26,0.00014438,2]
[354088913,1740229845139,-2030.04,0.00014438,2]
[354088914,1740229845149,-500.0,0.00014438,2]
[354088915,1740229845158,-1093.42,0.00014438,2]
[354088916,1740229845168,-500.0,0.00014438,2]
[354088917,1740229845177,-500.0,0.00014438,2]
[354088918,1740229845187,-524.54,0.00014438,2]
[354088919,1740229845197,-1356.42,0.00014438,2]
[354088920,1740229845208,-500.0,0.00014438,2]
[354088921,1740229845218,-1132.76,0.00014438,2]
[354088922,1740229845228,-500.0,0.00014438,2]
[354088923,1740229845236,-996.15,0.00014438,2]
[354088924,1740229845246,-500.0,0.00014438,2]
[354088925,1740229845255,-14353.05,0.00014438,2]
[354088926,1740229845265,-500.0,0.00014438,2]
[354088927,1740229845275,-227.89,0.0001452,2]
[354088928,1740229845285,-474.82,0.0001452,2]
[354088929,1740229845294,-500.0,0.0001452,2]
[354088930,1740229845304,-500.0,0.0001452,2]
[354088931,1740229845314,-1002.13,0.0001452,2]
[354088932,1740229845323,-2920.62,0.0001452,2]
[354088933,1740229845333,-214.48,0.0001452,2]
[354088934,1740229845426,-500.0,0.0001452,2]
[354088935,1740229845450,-1074.07,0.0001452,2]
[354088936,1740229845460,-5226.25,0.0001452,2]
[354088937,1740229845470,-500.0,0.0001452,2]
[354088938,1740229845481,-1006.26,0.0001452,2]
[354088939,1740229845491,-2030.04,0.0001452,2]
[354088940,1740229845501,-500.0,0.0001452,2]
[354088941,1740229845510,-1093.42,0.0001452,2]
[354088942,1740229845520,-500.0,0.0001452,2]
[354088943,1740229845529,-500.0,0.0001452,2]
[354088944,1740229845539,-1356.42,0.0001452,2]
[354088945,1740229845548,-500.0,0.0001452,2]
[354088946,1740229845558,-1132.76,0.0001452,2]
[354088947,1740229845567,-500.0,0.0001452,2]
[354088948,1740229845577,-996.15,0.0001452,2]
[354088949,1740229845586,-558.32,0.0001452,2]
[354088950,1740229845596,-14353.05,0.0001452,2]
[354088951,1740229845606,-500.0,0.0001452,2]
[354088952,1740229845616,-500.0,0.00014601,2]
[354088953,1740229845625,-633.67764684,0.00014601,2]
[354088954,1740229845636,-325.02148763,0.00014602,2]
[354088955,1740229845647,-500.0,0.00014602,2]
[354088956,1740229845656,-1002.13,0.00014602,2]
[354088957,1740229845666,-2920.62,0.00014602,2]
[354088958,1740229845675,-500.0,0.00014602,2]
[354088959,1740229845686,-1074.07,0.00014602,2]
[354088960,1740229845695,-5226.25,0.00014602,2]
[354088961,1740229845704,-500.0,0.00014602,2]
[354088962,1740229845714,-1006.26,0.00014602,2]
[354088963,1740229845724,-2030.04,0.00014602,2]
[354088964,1740229845733,-500.0,0.00014602,2]
[354088965,1740229845743,-1093.42,0.00014602,2]
[354088966,1740229845752,-500.0,0.00014602,2]
[354088967,1740229845762,-500.0,0.00014602,2]
[354088968,1740229845774,-1356.42,0.00014602,2]
[354088969,1740229845783,-500.0,0.00014602,2]
[354088970,1740229845792,-1132.76,0.00014602,2]
[354088971,1740229845802,-500.0,0.00014602,2]
[354088972,1740229845812,-996.15,0.00014602,2]
[354088973,1740229845821,-14353.05,0.00014602,2]
[354088974,1740229845830,-500.0,0.00014602,2]
[354088976,1740229845840,-500.0,0.00014684,2]
[354088978,1740229845851,-1002.13,0.00014684,2]
[354088980,1740229845860,-2920.62,0.00014684,2]
[354088981,1740229845870,-500.0,0.00014684,2]
[354088982,1740229845879,-1074.07,0.00014684,2]
[354088983,1740229845889,-5226.25,0.00014684,2]
[354088985,1740229845898,-500.0,0.00014684,2]
[354088987,1740229845907,-1006.26,0.00014684,2]
[354088989,1740229845917,-2030.04,0.00014684,2]
[354088991,1740229845926,-500.0,0.00014684,2]
[354088993,1740229845935,-1093.42,0.00014684,2]
[354088995,1740229845945,-500.0,0.00014684,2]
[354088997,1740229845954,-500.0,0.00014684,2]
[354088998,1740229845963,-1356.42,0.00014684,2]
[354089000,1740229845972,-500.0,0.00014684,2]
[354089002,1740229845981,-1132.76,0.00014684,2]
[354089004,1740229845991,-500.0,0.00014684,2]
[354089006,1740229846000,-996.15,0.00014684,2]
[354089008,1740229846010,-14353.05,0.00014684,2]
[354089010,1740229846020,-500.0,0.00014684,2]
[354089012,1740229846029,-12924.89674434,0.00014714,2]
[354089014,1740229846039,-245.72448458,0.00014718,2]
[354089016,1740229846049,-1000.0,0.00014721,2]
[354089018,1740229846058,-500.0,0.00014721,2]
[354089020,1740229846067,-500.0,0.00014767,2]
[354089022,1740229846076,-1002.13,0.00014767,2]
[354089024,1740229846085,-2920.62,0.00014767,2]
[354089026,1740229846095,-500.0,0.00014767,2]
[354089028,1740229846105,-1074.07,0.00014767,2]
[354089030,1740229846115,-5226.25,0.00014767,2]
[354089032,1740229846126,-500.0,0.00014767,2]